[Event "Baku Open 2024"]
[Site "Baku"]
[Date "2024.06.30"]
[Round "2.2"]
[White "Kamalidenova, Meruert"]
[Black "Puranik, Abhimanyu"]
[Result "0-1"]
[ECO "C45"]
[WhiteElo "2360"]
[BlackElo "2632"]
[Annotator "TA"]
[PlyCount "75"]
[EventDate "2024.06.29"]
[EventType "swiss"]
[EventCountry "AZE"]
[SourceTitle "playchess.com"]
[Source "ChessBase"]
[SourceQuality "1"]
[TimeControl "5400+30"]

{[%evp 14,75,29,16,24,0,0,0,11,-16,0,-11,-13,-16,-15,-18,6,16,20,-35,-25,-30,-30,-118,-102,-126,-138,-289,-222,-215,-221,-289,-262,-573,-581,-615,-608,-696,-575,-523,-419,-929,-931,-1006,-984,-1229,-1254,-1163,-1133,-1028,-318,-347,-363,-372,-364,-356,-370,-371,-355,-398,-408,-436,-427,-938]} 1. e4 {[%emt 0:00:03]} e5 {[%emt 0:00:22]} 2. Nf3 {[%emt 0:00:05]} Nc6 {[%emt 0:00:03]} 3. d4 {[%emt 0:00:05]} exd4 {[%emt 0:00:29]} 4. Nxd4 {[%emt 0:00:06]} Bc5 {[%emt 0:01:06]} 5. Nb3 {[%emt 0:00:07]} Bb6 {[%emt 0:00:02]} 6. Nc3 {[%emt 0:00:18]} Qf6 {[%emt 0:00:56]} 7. Qe2 {[%emt 0:00:07]} Nge7 {[%emt 0:00:03]} 8. h4 {[%emt 0:00:21]} h6 {[%emt 0:02:06]} 9. g4 {[%emt 0:00:24][%cal Bg2g4,Bg4g5][%mdl 32]} d6 {[%emt 0:05:39]} 10. f4 {[%emt 0:00:42] Inhibits Ne5.} Bd7 {[%emt 0:14:59] The position is equal.} 11. g5 {[%emt 0:06:11]} Qg6 {[%emt 0:00:23]} 12. h5 {[%emt 0:07:23]} Qh7 {[%emt 0:00:16]} 13. a4 {[%emt 0:02:18]} a6 {[%emt 0:14:20]} (13... hxg5 $6 14. a5 Bc5 15. Nxc5 (15. fxg5 Bb4 $14) 15... dxc5 16. fxg5 $16) 14. a5 {[%emt 0:02:00]} Nd4 {[%emt 0:02:32]} 15. Nxd4 {[%emt 0:07:01]} Bxd4 {[%emt 0:00:33]} 16. Bg2 {[%emt 0:00:22]} (16. Bd2 $1 $11) 16... Bxc3+ $15 {[%emt 0:04:21]} 17. bxc3 {[%emt 0:00:09]} O-O-O {[%emt 0:00:03]} 18. Rb1 {[%emt 0:03:43]} (18. Bb2 $11) 18... Rde8 $17 {[%emt 0:06:15]} 19. Be3 {[%emt 0:03:54] [#]} hxg5 $1 {[%emt 0:05:21]} 20. f5 {[%emt 0:03:22] This move loses the game for White.} (20. fxg5 $17 {was the only chance.} Nc6 21. Qc4) 20... Bc6 {[%emt 0:06:25] Hoping for ...f6.} 21. Kd2 {[%emt 0:06:11]} d5 {[%emt 0:04:14]} 22. Kc1 {[%emt 0:01:17]} dxe4 {[%emt 0:02:51] aiming for ...Nd5.} 23. Qc4 {[%emt 0:00:06] [#]} (23. Bxg5 {is tougher.} f6 (23... Nxf5 $2 24. Rb4 $19) (23... Qxf5 $2 24. Bh3 $18) 24. Bd2) 23... Qxf5 $19 {[%emt 0:02:36][%cal Oe7d5]} (23... Nxf5 $2 24. Bh3 f6 (24... Qxh5 $2 25. Bxf5+ $18) 25. Qc5 $17) 24. Rf1 {[%emt 0:03:58]} Qxa5 {[%emt 0:01:51]} 25. Qd4 {[%emt 0:06:36]} b6 {[%emt 0:02:00]} 26. Rxf7 {[%emt 0:02:24]} Nd5 {[%emt 0:03:41]} 27. Qxg7 {[%emt 0:01:31]} (27. Kb2 $142) 27... Rhg8 {[%emt 0:01:57]} (27... Nxe3 $2 {too greedy.} 28. Rxc7+ Kb8 29. Rxc6 $18) 28. Qh7 {[%emt 0:01:54]} Qxc3 {[%emt 0:00:56]} (28... Nxe3 $2 {perishes.} 29. Rxc7+ Kb8 30. Rxc6 $18) 29. Rb3 {[%emt 0:02:15]} Qa1+ {[%emt 0:00:37]} 30. Kd2 {[%emt 0:00:06]} Rd8 {[%emt 0:02:28]} 31. Ke2 {[%emt 0:01:07]} Qe5 $2 {[%emt 0:01:39]} (31... g4 {( -> ...Nc3+)} 32. Bd2 Kb8) 32. Qf5+ {[%emt 0:02:33]} Qxf5 {[%emt 0:00:04]} 33. Rxf5 {[%emt 0:00:04]} Bd7 {[%emt 0:01:47]} 34. Re5 {[%emt 0:02:00]} Bg4+ {[%emt 0:00:08]} 35. Kf2 {[%emt 0:00:25]} Nxe3 {[%emt 0:01:10]} 36. Kxe3 {[%emt 0:00:17]} Bxh5 {[%emt 0:00:08]} 37. Rc3 {[%emt 0:00:17]} Rde8 {[%emt 0:01:19] Wards off Re6} 38. Kd4 {[%emt 0:37:48] Weighted Error Value: White=1.04/Black=0.20 (precise) .  Mistake:       	White=6     	---        Inaccurate:     	White=2     	---        OK:         	White=5     	Black=15} (38. Bh3+ $142 Kb8 39. Rxe4) 0-1

[Event "Baku Open 2024"]
[Site "Baku"]
[Date "2024.06.30"]
[Round "2.3"]
[White "Suleymanli, Aydin"]
[Black "Galaktionov, Artem"]
[Result "1/2-1/2"]
[ECO "B12"]
[WhiteElo "2626"]
[BlackElo "2358"]
[Annotator "TA"]
[PlyCount "159"]
[EventDate "2024.06.29"]
[EventType "swiss"]
[EventCountry "AZE"]
[SourceTitle "playchess.com"]
[Source "ChessBase"]
[SourceQuality "1"]
[TimeControl "5400+30"]

{[%evp 60,159,-284,-297,-273,-385,-252,-415,-335,-5302,-253,-268,-255,-244,-189,-177,-149,-167,-167,-167,-168,-176,-186,-154,-179,-125,-59,-59,-59,-59,-59,-70,-59,-59,-59,-59,-59,-59,-57,-57,-54,-54,-54,-57,-57,-55,-41,-49,-48,-47,0,-43,-47,-54,-54,-48,-30,-30,-26,-27,-24,-30,-21,-21,-21,-21,-21,-21,-14,-30,-30,-30,-30,-30,-30,-30,-30,-30,-30,-30,-30,-30,-30,-30,-21,-30,-30,-30,-21,-30,-21,-29,-17,-29,-28,-29,-29,-30,-29,-29,-25,-25]} 1. e4 {[%emt 0:00:03]} c6 {[%emt 0:00:04]} 2. d4 {[%emt 0:00:04]} d5 {[%emt 0:00:02]} 3. e5 {[%emt 0:00:03]} Bf5 {[%emt 0:00:04]} 4. Nf3 {[%emt 0:00:07]} e6 {[%emt 0:00:05]} 5. Be2 {[%emt 0:00:03]} Nd7 {[%emt 0:00:04]} 6. O-O {[%emt 0:00:09]} a5 {[%emt 0:00:02]} 7. Nc3 {[%emt 0:00:05]} a4 {[%emt 0:02:59]} 8. Bd2 {[%emt 0:00:06]} Bg4 {[%emt 0:07:26]} 9. b3 {[%emt 0:16:12]} axb3 {[%emt 0:07:55]} 10. axb3 {[%emt 0:00:11]} Ne7 {[%emt 0:00:03]} 11. Rxa8 {[%emt 0:10:16]} Qxa8 {[%emt 0:00:46]} 12. Ng5 {[%emt 0:00:36]} Bxe2 {[%emt 0:00:24]} 13. Nxe2 {[%emt 0:00:29]} h6 {[%emt 0:02:35]} 14. Nxe6 {[%emt 0:18:27]} fxe6 {[%emt 0:00:39]} 15. Nf4 {[%emt 0:00:56]} h5 {[%emt 0:01:23]} 16. Nxe6 {[%emt 0:50:43]} Qc8 {[%emt 0:01:40]} 17. Ng5 {[%emt 0:00:00]} Nf5 {[%emt 0:03:11]} 18. g4 {[%emt 0:00:00]} hxg4 {[%emt 0:05:06]} 19. Qxg4 {[%emt 0:00:00]} g6 {[%emt 0:00:06]} 20. Nf3 {[%emt 0:00:00]} Rg8 {[%emt 0:01:13]} 21. Nh4 {[%emt 0:00:00]} Rg7 {[%emt 0:17:22]} 22. Bg5 {[%emt 0:00:00]} Nb6 {[%emt 0:02:07]} 23. Ng2 {[%emt 0:00:00]} Be7 {[%emt 0:05:10]} 24. Bxe7 {[%emt 0:00:00]} Nxe7 {[%emt 0:07:19]} 25. e6 {[%emt 0:00:00]} Kf8 {[%emt 0:00:00]} 26. Re1 {[%emt 0:00:00]} Kg8 {[%emt 0:00:12]} 27. Nf4 {[%emt 0:00:00]} Qf8 {[%emt 0:00:10]} 28. Nd3 {[%emt 0:00:00]} Nbc8 {[%emt 0:09:46]} 29. Nc5 {[%emt 0:00:00]} Qf5 {[%emt 0:03:27]} 30. Qg3 {[%emt 0:00:00]} g5 {[%emt 0:02:22]} 31. Nxb7 {[%emt 0:00:00]} Qxc2 {[%emt 0:00:13]} 32. Nd8 {[%emt 0:00:55]} (32. Nc5 {is the only way for White.}) 32... Qd2 {[%emt 0:00:27]} 33. Ra1 $2 {[%emt 0:01:23]} (33. Qe3 {was called for.} Qxe3 34. fxe3) 33... Qxd4 {[%emt 0:02:57]} 34. Ra8 $2 {[%emt 0:00:01]} (34. Rc1) 34... Qf4 $2 {[%emt 0:04:06]} (34... Qd1+ 35. Kg2 Nf5 36. Rxc8 Nxg3 37. hxg3 Kh7 (37... Qxb3 38. Nf7+ Kh7 39. Rh8+ Kg6 40. e7 $11) 38. Rxc6 Qxb3) 35. Qxf4 $19 {[%emt 0:02:37]} gxf4+ {[%emt 0:00:01]} 36. Kf1 {[%emt 0:00:05]} Kh7 {[%emt 0:03:24]} 37. Nxc6 {[%emt 0:00:09]} Nxc6 {[%emt 0:00:07]} 38. Rxc8 {[%emt 0:00:04]} Nd4 {[%emt 0:00:34]} 39. Rd8 {[%emt 0:02:09]} Nxe6 {[%emt 0:00:08]} 40. Rxd5 {[%emt 0:00:09]} Rb7 {[%emt 0:04:30]} 41. Rd6 {[%emt 0:00:36] [#]} Nf8 $1 {[%emt 0:00:44]} 42. h4 {[%emt 0:02:54]} Rxb3 {[%emt 0:03:42]} (42... Rb5 $17 {[%cal Of8g6] And now ...Ng6! would win.} 43. Rd4 Ng6 (43... Rxb3 44. Rxf4 Ng6 45. Ra4 $15)) 43. Rf6 $1 $15 {[%emt 0:00:29]} f3 {[%emt 0:00:02]} 44. Kg1 $1 {[%emt 0:00:53]} Kg7 {[%emt 0:00:13]} 45. Rf5 {[%emt 0:01:31]} Ne6 {[%emt 0:02:37]} 46. Kh2 {[%emt 0:00:13]} Kg6 {[%emt 0:01:12]} 47. Ra5 {[%emt 0:00:26]} Rc3 {[%emt 0:03:21]} 48. Kg3 {[%emt 0:00:46]} Nc5 {[%emt 0:00:34]} 49. Kf4 {[%emt 0:00:17]} Kh5 {[%emt 0:00:26]} 50. Kg3 {[%emt 0:00:11]} Kh6 {[%emt 0:00:42]} 51. Kf4 {[%emt 0:00:23]} Kg6 {[%emt 0:00:01]} 52. Rb5 {[%emt 0:00:15]} Nb3 {[%emt 0:00:42]} 53. Rg5+ {[%emt 0:01:08]} Kf6 {[%emt 0:00:29]} 54. Rf5+ {[%emt 0:00:10]} Kg6 {[%emt 0:00:12]} 55. Rg5+ {[%emt 0:00:31]} Kh6 {[%emt 0:00:03]} 56. Rd5 {[%emt 0:00:46]} Nc1 {[%emt 0:00:04]} 57. Kg4 {[%emt 0:00:21]} Ne2 {[%emt 0:00:32]} 58. Rh5+ {[%emt 0:00:07]} Kg6 {[%emt 0:00:16]} 59. Rg5+ {[%emt 0:00:03]} Kf6 {[%emt 0:00:03]} 60. Rf5+ {[%emt 0:00:06]} Ke6 {[%emt 0:00:03]} 61. Rxf3 {[%emt 0:00:11]} Rc4+ {[%emt 0:00:07]} 62. Kg5 {[%emt 0:00:10]} Nd4 {[%emt 0:00:05]} 63. Ra3 {[%emt 0:00:30]} (63. Rf6+ Ke7 64. Ra6 Nf3+ 65. Kf5 Nxh4+ 66. Kg5 Nf3+ 67. Kf5 Nd4+ 68. Ke5 Nc6+ 69. Kf5 Nd4+ 70. Ke4 Nb5+ 71. Kf3 Rc3+ 72. Kf4 Nd4 $15) 63... Rc8 {[%emt 0:00:58]} 64. Re3+ {[%emt 0:00:57]} Kf7 {[%emt 0:00:19]} 65. Kf4 {[%emt 0:00:29]} Kf6 {[%emt 0:00:14]} 66. Ra3 {[%emt 0:00:38]} Rc4 {[%emt 0:00:10]} 67. Ra6+ {[%emt 0:00:04]} Ne6+ {[%emt 0:00:05]} 68. Kg3 {[%emt 0:00:04]} Kf5 {[%emt 0:00:12]} 69. Ra5+ {[%emt 0:00:06]} Nc5 {[%emt 0:00:01]} 70. f3 {[%emt 0:00:24]} Kf6 {[%emt 0:00:11]} 71. Rb5 {[%emt 0:00:10]} Nd7 {[%emt 0:00:08]} 72. Ra5 {[%emt 0:00:48]} Ne5 {[%emt 0:00:05]} 73. Ra3 {[%emt 0:00:42]} Rc6 {[%emt 0:00:06]} 74. Ra8 {[%emt 0:00:50]} Ng6 {[%emt 0:00:15]} 75. Ra5 {[%emt 0:00:13]} Ne7 {[%emt 0:00:02]} 76. Ra4 {[%emt 0:00:40]} Kg6 {[%emt 0:00:58]} 77. Kg4 {[%emt 0:00:17]} Nd5 {[%emt 0:00:32]} 78. Kg3 {[%emt 0:00:16]} Kh6 {[%emt 0:00:27]} 79. Rd4 {[%emt 0:00:16]} Rg6+ {[%emt 0:00:21]} 80. Rg4 {[%emt 0:00:04]} 1/2-1/2

[Event "Baku Open 2024"]
[Site "Baku"]
[Date "2024.06.30"]
[Round "2.4"]
[White "Atakishiyev, Elmar"]
[Black "Abasov, Nijat"]
[Result "1-0"]
[ECO "E04"]
[WhiteElo "2356"]
[BlackElo "2621"]
[Annotator "TA"]
[PlyCount "99"]
[EventDate "2024.06.29"]
[EventType "swiss"]
[EventCountry "AZE"]
[SourceTitle "playchess.com"]
[Source "ChessBase"]
[SourceQuality "1"]
[TimeControl "5400+30"]

{[%evp 16,99,0,0,25,-14,-14,-17,-28,-38,12,0,20,21,18,-38,0,0,13,0,6,-5,0,-18,-17,-16,-16,-16,16,11,31,23,59,18,16,9,91,48,51,49,118,123,159,161,210,199,194,201,208,213,220,212,217,209,303,324,328,352,455,442,522,340,341,295,318,296,381,356,272,258,375,377,500,485,486,462,430,506,502,404,404,404,562,535,669,583]} 1. d4 {[%emt 0:00:02]} Nf6 {[%emt 0:01:52]} 2. Nf3 {[%emt 0:00:09]} d5 {[%emt 0:00:16]} 3. c4 {[%emt 0:00:10]} e6 {[%emt 0:00:05]} 4. g3 {[%emt 0:00:09]} dxc4 {[%emt 0:00:06]} 5. Bg2 {[%emt 0:00:03]} a6 {[%emt 0:00:19]} 6. O-O {[%emt 0:00:14]} Nc6 {[%emt 0:00:10]} 7. Nc3 {[%emt 0:00:05]} Rb8 {[%emt 0:04:31]} 8. e4 {[%emt 0:00:20]} Be7 {[%emt 0:00:57]} 9. Qe2 {[%emt 0:00:06]} b5 {[%emt 0:01:55][%cal Oe8g8] [#]} 10. d5 $1 {[%emt 0:06:38]} exd5 {[%emt 0:17:29]} 11. e5 {[%emt 0:11:47]} Ng4 {[%emt 0:02:05] Threatens to win with ...Bf5. The position is equal.} 12. Rd1 {[%emt 0:08:31]} Nb4 {[%emt 0:14:28]} (12... d4 $15 13. Qe4 Qd7) 13. h3 $11 {[%emt 0:02:14]} Nxf2 {[%emt 0:00:49]} 14. Qxf2 {[%emt 0:18:44]} Nd3 {[%emt 0:06:06] Wards off Ne1} 15. Qe2 {[%emt 0:00:25]} (15. Rxd3 $11 cxd3 16. Nd4) 15... O-O {[%emt 0:08:01]} (15... b4 $15 16. Na4 c5) 16. Rxd3 {[%emt 0:13:25]} cxd3 {[%emt 0:00:20]} 17. Qxd3 {[%emt 0:00:03]} Be6 {[%emt 0:07:06]} 18. Nd4 {[%emt 0:00:06]} Qd7 {[%emt 0:00:15] Prevents Nc6.} 19. Be3 {[%emt 0:01:03]} c5 {[%emt 0:03:31][%cal Bc7c5,Bc5c4][%mdl 32]} 20. Nxe6 {[%emt 0:00:49]} fxe6 {[%emt 0:00:06]} 21. Ne2 {[%emt 0:02:10]} c4 {[%emt 0:03:30]} 22. Qd2 {[%emt 0:01:33][%mdl 1024] White has compensation.} b4 {[%emt 0:01:46]} 23. h4 {[%emt 0:01:33]} Kh8 {[%emt 0:02:52]} 24. Bd4 {[%emt 0:03:42]} Qc6 {[%emt 0:02:00]} 25. Rc1 {[%emt 0:00:57][%cal Ba1c1,Bc1c4,Bc4d4][%mdl 32]} Bc5 {[%emt 0:01:50]} (25... a5 $11) 26. Rxc4 $16 {[%emt 0:01:54]} Bxd4+ {[%emt 0:00:06]} 27. Rxd4 {[%emt 0:00:04][%cal Od4d3] Strongly threatening Rd3!} Rf5 {[%emt 0:02:03] White now steadily converts the win.} ({Black should try} 27... b3 $14 28. axb3 Rxb3) 28. Rf4 {[%emt 0:04:28] And now Rxf5 would win.} Rxe5 {[%emt 0:02:45] [#]} 29. Qxb4 $1 {[%emt 0:00:10]} (29. Rxb4 $2 {loses.} Qc5+ (29... Rxb4 $2 30. Qxb4 Qc8 31. Nf4 $18) 30. Rd4 Rxe2 31. Qxe2 Qxd4+ $19) 29... Qe8 {[%emt 0:04:12]} (29... Qc8 {might work better.} 30. Qd2 Kg8) 30. Qd2 $18 {[%emt 0:00:10]} Qg6 {[%emt 0:01:03]} 31. Kh2 {[%emt 0:00:48]} Rf5 {[%emt 0:00:33]} 32. b3 $40 {[%emt 0:01:33][%mdl 128] White wants a kill.} Rbf8 {[%emt 0:02:27]} 33. Rxf5 {[%emt 0:02:30]} Qxf5 {[%emt 0:00:40]} 34. Nf4 {[%emt 0:00:35]} Rc8 {[%emt 0:07:28]} (34... g5 {was called for.} 35. Bh3 g4) 35. Qa5 {[%emt 0:03:06]} d4 {[%emt 0:00:07][%cal Bd5d4,Bd4d3][%mdl 32]} 36. Qxa6 {[%emt 0:03:41]} e5 {[%emt 0:00:03] [#]} 37. Be4 $1 {[%emt 0:00:19][%mdl 512]} Qg4 {[%emt 0:00:31]} (37... Qf8 38. Ne6) 38. Qe2 {[%emt 0:04:00]} Qxe2+ {[%emt 0:02:55]} 39. Nxe2 {[%emt 0:00:03]} Rd8 {[%emt 0:00:02]} 40. Kg2 {[%emt 0:04:18]} d3 {[%emt 0:00:06]} 41. Nc3 {[%emt 0:00:02]} Rc8 {[%emt 0:00:06]} 42. Nd1 {[%emt 0:00:22]} Rc1 {[%emt 0:00:05]} (42... Rc2+ $142 43. Kf3 Rxa2 44. Bxd3 Rd2) 43. Ne3 {[%emt 0:00:10]} g6 {[%emt 0:03:24]} ({Much weaker is} 43... d2 44. Bf3 Re1 45. Kf2 $18) 44. Kf2 {[%emt 0:00:52]} (44. Bxd3 Rc3 $11) 44... Ra1 {[%emt 0:00:22]} 45. Bxd3 {[%emt 0:01:30]} Rxa2+ {[%emt 0:00:04]} 46. Kf3 {[%emt 0:00:02]} Kg7 {[%emt 0:01:12]} 47. Ke4 {[%emt 0:00:06]} Rb2 {[%emt 0:00:36]} 48. Bc4 {[%emt 0:00:07]} ({Weaker is} 48. Kxe5 Rxb3 49. Kd4 Rb7 $16) 48... g5 {[%emt 0:00:04]} 49. h5 {[%emt 0:01:05]} g4 {[%emt 0:00:29]} 50. Nxg4 {[%emt 0:00:34] Weighted Error Value: White=0.13 (very precise) /Black=0.39.  Mistake:       	White=1     	Black=7      Inaccurate:     	White=3     	Black=4      OK:         	White=20    	Black=14     Best:        	White=6     	---        Strong:       	White=1     	---} 1-0

[Event "Baku Open 2024"]
[Site "Baku"]
[Date "2024.06.30"]
[Round "2.5"]
[White "Aditya Mittal"]
[Black "Aliyev, Ravan"]
[Result "1-0"]
[ECO "C54"]
[WhiteElo "2595"]
[BlackElo "2352"]
[Annotator "TA"]
[PlyCount "89"]
[EventDate "2024.06.29"]
[EventType "swiss"]
[EventCountry "AZE"]
[SourceTitle "playchess.com"]
[Source "ChessBase"]
[SourceQuality "1"]
[TimeControl "5400+30"]

{[%evp 13,89,19,16,8,14,13,13,16,31,14,14,20,27,17,41,18,32,35,64,30,78,53,70,68,72,66,62,56,56,63,56,62,71,64,70,84,70,87,88,56,55,50,62,68,136,18,90,92,91,91,98,62,89,64,60,22,31,0,0,0,0,0,0,-8,0,0,155,0,0,0,0,0,427,370,853,805,783,356]} 1. e4 {[%emt 0:00:01]} e5 {[%emt 0:00:43]} 2. Nf3 {[%emt 0:00:02]} Nc6 {[%emt 0:00:08]} 3. Bc4 {[%emt 0:00:01]} Bc5 {[%emt 0:00:09]} 4. O-O {[%emt 0:00:07]} Nf6 {[%emt 0:00:06]} 5. d3 {[%emt 0:00:01]} d6 {[%emt 0:00:35]} 6. c3 {[%emt 0:00:02]} a6 {[%emt 0:01:32]} 7. a4 {[%emt 0:00:01]} h6 {[%emt 0:01:05]} 8. h3 {[%emt 0:00:02]} O-O {[%emt 0:00:23]} 9. Re1 {[%emt 0:02:56]} Ba7 {[%emt 0:00:46]} 10. Nbd2 {[%emt 0:00:35][%cal Bb1d2,Bd2f1,Bf1g3][%mdl 32] The position is equal.} Ne7 {[%emt 0:01:36]} 11. Nf1 {[%emt 0:07:30]} Ng6 {[%emt 0:00:43]} 12. Ng3 {[%emt 0:07:07]} c6 {[%emt 0:01:13]} 13. Bb3 {[%emt 0:05:04]} Re8 {[%emt 0:07:02]} 14. d4 {[%emt 0:02:47]} Be6 {[%emt 0:08:40]} 15. Bc2 {[%emt 0:05:22]} Qc7 {[%emt 0:02:58]} 16. Be3 {[%emt 0:01:52]} a5 {[%emt 0:08:41]} (16... Rad8 $11) 17. Qc1 {[%emt 0:10:05]} Rad8 {[%emt 0:04:42]} 18. Nf5 {[%emt 0:03:48]} Bxf5 {[%emt 0:26:04]} 19. exf5 {[%emt 0:00:11]} e4 {[%emt 0:01:31]} 20. Nd2 {[%emt 0:20:50]} Nh4 {[%emt 0:04:05][%cal Od6d5] [#] Hoping for ...d5!} 21. Bf4 {[%emt 0:05:43][%cal Rd2e4]} Qd7 {[%emt 0:01:24]} 22. Nxe4 {[%emt 0:11:14]} (22. Bxe4 Nxe4 23. Rxe4 Rxe4 24. Nxe4 Nxf5 $11) 22... Qxf5 {[%emt 0:00:42][%cal Rf6e4]} 23. Bg3 $36 {[%emt 0:01:17][%mdl 2048] White is more active.} (23. Nxd6 $2 Rxe1+ 24. Qxe1 Qxf4 $19 (24... Qxc2 $2 25. Qb1 $19)) 23... Ng6 {[%emt 0:04:15][%cal Re8e4]} 24. Nxf6+ {[%emt 0:01:43]} (24. Nxd6 $2 Rxe1+ 25. Qxe1 Qxc2 $19) 24... Qxf6 {[%emt 0:00:02]} 25. Qd2 {[%emt 0:01:22]} Bb6 {[%emt 0:14:34]} 26. Qd3 {[%emt 0:02:18]} d5 {[%emt 0:03:54]} 27. h4 {[%emt 0:00:13]} h5 {[%emt 0:01:37]} 28. Re2 {[%emt 0:00:53]} Kf8 {[%emt 0:03:26] [#]} (28... Rxe2 $14 29. Qxe2 Nf4 30. Bxf4 Qxf4) 29. Kf1 {[%emt 0:07:35]} (29. Rae1 $1 $16) 29... Nf4 {[%emt 0:01:40]} (29... Rxe2 $11 30. Qxe2 Nf4 31. Bxf4 Qxh4) 30. Rxe8+ $16 {[%emt 0:00:34]} Rxe8 {[%emt 0:00:01]} 31. Qh7 {[%emt 0:01:13] And now Bxf4 would win.} Ke7 {[%emt 0:01:08][%cal Bf8e7,Be7d8,Bd8e8][%mdl 32]} 32. Re1+ {[%emt 0:00:49]} Kd8 {[%emt 0:00:30]} 33. Rxe8+ {[%emt 0:01:26]} Kxe8 {[%emt 0:00:01]} 34. Bf5 {[%emt 0:00:30]} Bc7 {[%emt 0:01:01]} 35. Bxf4 {[%emt 0:02:06]} Bxf4 $14 {[%emt 0:00:07][%mdl 4096] Endgame. KQB-KQB} 36. Qg8+ {[%emt 0:00:19]} Ke7 {[%emt 0:00:02]} 37. Qc8 {[%emt 0:00:03]} g6 {[%emt 0:00:57]} 38. Bd7 {[%emt 0:00:58]} Qxh4 {[%emt 0:00:55]} 39. Qxb7 {[%emt 0:00:43]} Qh1+ {[%emt 0:00:28]} 40. Ke2 {[%emt 0:00:01]} Qc1 $1 {[%emt 0:00:27] ( -> ...Qc2+)} 41. g3 {[%emt 0:00:57]} (41. Qxc6 $2 Qc2+ (41... Qxb2+ 42. Kf3 $11) 42. Ke1 Qd2+ 43. Kf1 Qd1#) 41... Qc2+ $1 {[%emt 0:00:33]} 42. Kf1 {[%emt 0:00:05] aiming for Bf5+.} Qc1+ $2 {[%emt 0:00:33][%mdl 8192]} (42... Qd3+ $11 43. Kg1 Qb1+ 44. Kh2 Qe1 45. Bh3+ (45. gxf4 Qxf2+ 46. Kh1 Qf1+ 47. Kh2 Qxf4+ 48. Kg1 Qc1+ 49. Kf2 Qd2+ 50. Kf1 Qd1+ 51. Kf2 Qd2+ 52. Kf1 Qd1+ 53. Kf2 Qd2+ $11) (45. Bxc6+ Kf6 $11) 45... Kf8) 43. Kg2 $18 {[%emt 0:00:06]} Bd6 $2 {[%emt 0:00:29]} (43... Bg5 44. Bxc6+ (44. Qxc6 h4 $18) 44... Kf8 45. Bxd5 Be7 46. Qc8+ Kg7) 44. Bxc6+ {[%emt 0:00:12]} Kf6 {[%emt 0:00:17]} 45. Bxd5 {[%emt 0:00:06] Weighted Error Value: White=0.13 (very precise) /Black=0.28 (precise) .  Loses game:     	---       	Black=1      Mistake:       	White=1     	Black=4      Inaccurate:     	White=6     	Black=1      OK:         	White=12    	Black=10     Best:        	White=6     	Black=4      Strong:       	---       	Black=2} (45. Be8 $142 Qc2 46. Qxf7+ (46. Bxf7 Qe4+ 47. Kf1 Qd3+ 48. Ke1 Qe4+ 49. Kd2 Qf3 $11) 46... Kg5 47. Qxd5+ Kh6 48. Qxd6 Qe4+ 49. Kh2 Qxe8 50. Qf4+ Kh7 51. d5) 1-0